fUST/lending_fUST_20251121
["ID","MTS","AMOUNT","RATE_DAILY","PERIOD"]
[394575775,1763729124756,-500.0,8.235e-05,2]
[394575776,1763729124783,-500.0,8.235e-05,2]
[394575777,1763729124810,-500.0,8.235e-05,2]
[394575778,1763729124832,-500.0,8.235e-05,2]
[394575779,1763729124854,-500.0,8.235e-05,2]
[394575780,1763729124879,-500.0,8.235e-05,2]
[394575781,1763729124905,-500.0,8.235e-05,2]
[394575782,1763729124932,-500.0,8.235e-05,2]
[394575783,1763729124961,-300.0,8.235e-05,2]
[394575784,1763729124981,-500.0,8.236e-05,2]
[394575785,1763729125001,-192.51,8.238e-05,2]
[394575786,1763729125025,-192.51,8.238e-05,2]
[394575787,1763729125048,-192.52,8.238e-05,2]
[394575788,1763729125069,-277.1080047,8.507e-05,2]
[394575789,1763729125090,-1680.0,9.055e-05,2]
[394575790,1763729125112,-420.0,9.057e-05,2]
[394575791,1763729125135,-177.0,9.881e-05,2]
[394575792,1763729125164,-1920.0,9.961e-05,2]
[394575793,1763729125187,-587.0,9.963e-05,2]
[394575794,1763729125209,-500.0,0.00010816,2]
[394575795,1763729125231,-500.0,0.00010816,2]
[394575796,1763729125252,-500.0,0.00010816,2]
[394575797,1763729125274,-500.0,0.00010816,2]
[394575798,1763729125295,-500.0,0.00010816,2]
[394575799,1763729125316,-96.16062443,0.00010816,2]
[394575806,1763729142978,-132.17314022,0.00010816,2]
[394575807,1763729143002,-500.0,0.00010959,2]
[394575808,1763729143026,-500.0,0.00010959,2]
[394575809,1763729143049,-456.26366028,0.00010959,2]
[394575810,1763729143073,-500.0,0.00010959,2]
[394575811,1763729143096,-823.0,0.00010959,2]
[394575812,1763729143120,-1000.0,0.00011364,2]
[394575813,1763729143142,-1000.0,0.00011364,2]
[394575814,1763729143164,-1000.0,0.00011364,2]
[394575815,1763729143186,-1000.0,0.00011364,2]
[394575816,1763729143208,-1000.0,0.00011364,2]
[394575817,1763729143246,-169.94636206,0.0001146,2]
[394575818,1763729143267,-500.0,0.00011573,2]
[394575819,1763729143288,-418.61683744,0.00011573,2]
[394575824,1763729204445,279.0,0.00021908,120]
[394575826,1763729209107,-223.02823501,0.00010601,2]
[394575827,1763729245082,-888.31186513,0.00010601,2]
[394575841,1763729432230,-1213.14717994,9.586e-05,2]
[394575842,1763729432240,-112.85282006,9.683e-05,2]
[394575843,1763729432283,-1100.29435988,9.683e-05,2]
[394575844,1763729432293,-146.84761935,9.781e-05,2]
[394575894,1763729439189,-3111.225,9.781e-05,2]
[394575895,1763729439846,-152.25050745,9.781e-05,2]
[394575896,1763729440119,-150.0,0.00010654,2]
[394575897,1763729440142,-252.33236098,0.00010815,2]
[394575898,1763729440154,-47.66763902,0.00010815,2]
[394575900,1763729440164,-500.0,0.00010816,2]
[394575902,1763729440173,-500.0,0.00010816,2]
[394575904,1763729440182,-70.24790014,0.00010816,2]
[394575906,1763729440199,-434.5602348,0.00010816,2]
[394575908,1763729440209,-500.0,0.00010958,2]
[394575910,1763729440218,-279.97866729,0.00010958,2]
[394575912,1763729440230,-220.02133271,0.00010958,2]
[394575914,1763729440239,-500.0,0.00010958,2]
[394575916,1763729440249,-500.0,0.00010958,2]
[394575918,1763729440258,-207.76300819,0.00010958,2]
[394575920,1763729440270,-75.22925009,0.00010958,2]
[394575921,1763729440279,-500.0,0.00010958,2]
[394575923,1763729440289,-369.29816489,0.00010958,2]
[394575944,1763729446516,-272.33990001,0.00010555,2]
[394575960,1763729446708,-462.22176178,0.00010555,2]
[394575961,1763729446719,-130.70183511,0.00010958,2]
[394575962,1763729446729,-301.14837243,0.00010958,2]
[394575963,1763729446739,-999.0,0.00010959,2]
[394575964,1763729446749,-3306.5012621,0.00010959,2]
[394575965,1763729446759,-308.94898402,0.00011135,2]
[394575966,1763729446769,-3410.3231268,0.00011274,2]
[394575967,1763729446779,-1000.0,0.00011364,2]
[394575969,1763729446788,-616.54856462,0.00011364,2]
[394575970,1763729446798,-81.38316256,0.00011573,2]
[394575971,1763729446807,-420.0,0.00011886,2]
[394575972,1763729446817,-344.95288216,0.00012053,2]
[394575973,1763729446826,-500.0,0.00012053,2]
[394575974,1763729446836,-369.3845622,0.00012053,2]
[394575975,1763729446845,-369.3845622,0.00012053,2]
[394575976,1763729446854,-841.03191195,0.00012054,2]
[394575977,1763729446863,-841.03191195,0.00012054,2]
[394575978,1763729446872,-841.03191195,0.00012054,2]
[394575979,1763729446882,-841.03191195,0.00012054,2]
[394575980,1763729446891,-841.03191195,0.00012054,2]
[394575981,1763729446901,-841.03191195,0.00012054,2]
[394575982,1763729446911,-841.03191195,0.00012054,2]
[394575983,1763729446920,-841.03191195,0.00012054,2]
[394575984,1763729446930,-841.03191195,0.00012054,2]
[394575985,1763729446941,-841.03191195,0.00012054,2]
[394575986,1763729446952,-841.03191195,0.00012054,2]
[394575988,1763729446962,-841.03191195,0.00012054,2]
[394575989,1763729446974,-841.03191195,0.00012054,2]
[394575990,1763729446984,-841.03191195,0.00012054,2]
[394575991,1763729446994,-904.10930535,0.00012054,2]
[394575992,1763729447004,-904.10930535,0.00012054,2]
[394575993,1763729447014,-904.10930535,0.00012054,2]
[394575995,1763729447024,-904.10930535,0.00012054,2]
[394575997,1763729447033,-904.10930535,0.00012054,2]
[394575999,1763729447043,-904.10930535,0.00012054,2]
[394576001,1763729447052,-904.10930535,0.00012054,2]
[394576003,1763729447062,-190.14512977,0.00012054,2]
[394576022,1763729450067,-500.0,0.00012054,2]
[394576023,1763729450076,-713.96417558,0.00012054,2]
[394576024,1763729450086,-904.10930535,0.00012054,2]
[394576025,1763729450095,-904.10930535,0.00012054,2]
[394576026,1763729450104,-1205.47907379,0.00012054,2]
[394576027,1763729450113,-1205.47907379,0.00012054,2]
[394576028,1763729450123,-1205.47907379,0.00012054,2]
[394576029,1763729450132,-1205.47907379,0.00012054,2]
[394576030,1763729450141,-1205.47907379,0.00012054,2]
[394576031,1763729450151,-1205.47907379,0.00012054,2]
[394576032,1763729450159,-1000.0,0.00012121,2]
[394576033,1763729450168,-184.83727649,0.00012191,2]
[394576034,1763729450177,-500.0,0.00012328,2]
[394576035,1763729450186,-308.94898402,0.00012369,2]
[394576036,1763729450198,-500.0,0.00012602,2]
[394576037,1763729450207,-177.0,0.00012655,2]
[394576038,1763729450216,-500.0,0.00012668,2]
[394576039,1763729450226,-3410.3231268,0.00012767,2]
[394576040,1763729450235,-500.0,0.00012876,2]
[394576041,1763729450244,-236.0,0.00013064,2]
[394576042,1763729450253,-500.0,0.0001315,2]
[394576043,1763729450262,-474.68806802,0.00013424,2]
[394576044,1763729450271,-308.94898402,0.00013602,2]
[394576045,1763729450280,-500.0,0.00013698,2]
[394576046,1763729450290,-500.0,0.00013698,2]
[394576047,1763729450300,-592.14750283,0.00013698,2]
[394576048,1763729450310,-1000.0,0.00013699,2]
[394576049,1763729450320,-500.0,0.0001375,2]
[394576050,1763729450329,-500.0,0.0001375,2]
[394576051,1763729450338,-500.0,0.0001375,2]
[394576052,1763729450348,-500.0,0.0001375,2]
[394576053,1763729450357,-500.0,0.0001375,2]
[394576054,1763729450367,-500.0,0.0001375,2]
[394576055,1763729450377,-500.0,0.00013972,2]
[394576056,1763729450386,-500.0,0.00014018,2]
[394576057,1763729450395,-500.0,0.00014018,2]
[394576058,1763729450405,-500.0,0.00014018,2]
[394576059,1763729450414,-500.0,0.00014018,2]
[394576060,1763729450424,-500.0,0.00014018,2]
[394576061,1763729450436,-504.3135522,0.00014191,2]
[394576062,1763729450451,-3410.3231268,0.0001426,2]
[394576063,1763729450461,-1000.0,0.00014298,2]
[394576064,1763729450471,-195.23084076,0.00014298,2]
[394576065,1763729450481,-160.0,0.00014364,2]
[394576066,1763729450491,-353.13058887,0.00014364,2]
[394576067,1763729450500,-500.0,0.00014486,2]
[394576068,1763729450510,-500.0,0.00014486,2]
[394576069,1763729450519,-500.0,0.00014487,2]
[394576070,1763729450529,-500.0,0.00014487,2]
[394576071,1763729450539,-500.0,0.00014487,2]
[394576072,1763729450549,-500.0,0.00014487,2]
[394576073,1763729450559,-500.0,0.00014487,2]
[394576074,1763729450568,-500.0,0.0001452,2]
[394576075,1763729450578,-1000.0,0.00014566,2]
[394576076,1763729450588,-1000.0,0.00014566,2]
[394576077,1763729450600,-1000.0,0.00014566,2]
[394576078,1763729450609,-1000.0,0.00014566,2]
[394576079,1763729450619,-1000.0,0.00014566,2]
[394576080,1763729450630,-1347.6,0.00014573,2]
[394576081,1763729450639,-500.0,0.00014651,2]
[394576082,1763729450648,-204.0,0.00014655,2]
[394576083,1763729450658,-500.0,0.00014673,2]
[394576084,1763729450669,-415.15607661,0.00014673,2]
[394576085,1763729450680,-500.0,0.00014673,2]
[394576086,1763729450690,-391.64079085,0.00014772,2]
[394576087,1763729450705,-153.5150423,0.00014804,2]
[394576088,1763729450715,-308.94898402,0.00014835,2]
[394576089,1763729450725,-1000.0,0.00014846,2]
[394576090,1763729450736,-500.0,0.00015068,2]
[394576091,1763729450746,-501.92599954,0.00015082,2]
[394576092,1763729450756,-500.0,0.00015082,2]
[394576093,1763729450765,-500.0,0.00015082,2]
[394576094,1763729450775,-500.0,0.00015082,2]
[394576095,1763729450785,-500.0,0.00015082,2]
[394576096,1763729450795,-1000.0,0.00015114,2]
[394576097,1763729450805,-506.33799268,0.00015114,2]
[394576098,1763729450814,-1000.0,0.00015114,2]
[394576099,1763729450824,-1000.0,0.00015114,2]
[394576100,1763729450834,-500.0,0.00015114,2]
[394576101,1763729450843,-227.222032,0.00015174,2]
[394576102,1763729450852,-500.0,0.00015205,2]
[394576103,1763729450861,-512.69976703,0.00015221,2]
[394576104,1763729450871,-429.59951479,0.00015221,2]
[394576105,1763729450881,-160.0,0.000153,2]
[394576106,1763729450892,-443.0,0.00015342,2]
[394576107,1763729450903,-1000.0,0.0001563,2]
[394576108,1763729450912,-331.14823548,0.0001563,2]
[394576109,1763729450921,-1000.0,0.0001563,2]
[394576110,1763729450932,-1000.0,0.0001563,2]
[394576111,1763729450941,-260.0,0.00015848,2]
[394576112,1763729450953,-185.02211376,0.00016051,2]
[394576113,1763729450963,-309.257933,0.00016068,2]
[394576114,1763729450972,-1500.0,0.00016178,2]
[394576115,1763729450982,-1500.0,0.00016178,2]
[394576116,1763729450991,-504.87686704,0.00016178,2]
[394576117,1763729451000,-400.0,0.00016396,2]
[394576118,1763729451009,-500.0,0.00016438,2]
[394576119,1763729451019,-500.0,0.00016438,2]
[394576120,1763729451028,-500.0,0.00016438,2]
[394576121,1763729451038,-500.0,0.00016438,2]
[394576122,1763729451047,-500.0,0.00016438,2]
[394576123,1763729451056,-500.0,0.00016438,2]
[394576124,1763729451066,-500.0,0.00016438,2]
[394576125,1763729451075,-500.0,0.00016438,2]
[394576126,1763729451084,-500.0,0.00016438,2]
[394576127,1763729451093,-500.0,0.00016438,2]
[394576128,1763729451103,-500.0,0.00016438,2]
[394576129,1763729451112,-500.0,0.00016438,2]
[394576130,1763729451121,-500.0,0.00016438,2]
[394576131,1763729451130,-500.0,0.00016438,2]
[394576132,1763729451139,-500.0,0.00016438,2]
[394576133,1763729451148,-500.0,0.00016438,2]
[394576134,1763729451157,-500.0,0.00016438,2]
[394576135,1763729451167,-579.78961321,0.00016438,2]
[394576136,1763729451176,-500.0,0.00016438,2]
[394576137,1763729451185,-500.0,0.00016438,2]
[394576138,1763729451200,-500.0,0.00016438,2]
[394576139,1763729451210,-500.0,0.00016438,2]
[394576140,1763729451219,-500.0,0.00016438,2]
[394576141,1763729451228,-500.0,0.00016438,2]
[394576142,1763729451237,-307.36447846,0.00016438,2]
[394576143,1763729451247,-500.0,0.00016438,2]
[394576144,1763729451256,-500.0,0.00016438,2]
[394576145,1763729451265,-500.0,0.00016438,2]
[394576146,1763729451275,-500.0,0.00016438,2]
[394576147,1763729451284,-500.0,0.00016438,2]
[394576148,1763729451294,-500.0,0.00016438,2]
[394576149,1763729451303,-231.0,0.00016654,2]
[394576150,1763729451313,-1325.96311087,0.00016726,2]
[394576205,1763730582943,-191.61569244,7.607e-05,2]
[394576206,1763730584865,-108.38430756,7.607e-05,2]
[394576207,1763730584898,-153.27119503,7.646e-05,2]
[394576208,1763730584928,-46.73096488,7.684e-05,2]
[394576214,1763730612165,-300.0,7.456e-05,2]
[394576251,1763730632545,-300.0,7.456e-05,2]
[394576253,1763730632556,-300.0,7.531e-05,2]
[394576255,1763730632566,-253.26903512,7.684e-05,2]
[394576257,1763730632577,-300.0,7.952e-05,2]
[394576259,1763730632586,-300.0,7.952e-05,2]
[394576261,1763730632597,-300.0,7.952e-05,2]
[394576263,1763730632607,-643.62074338,7.952e-05,2]
[394576265,1763730632618,-556.37925662,7.952e-05,2]
[394576267,1763730632627,-87.39214806,7.953e-05,2]
[394576272,1763730632646,-413.50857553,7.953e-05,2]
[394576275,1763730632658,-196.38142447,7.953e-05,2]
[394576278,1763730632670,-303.61857553,7.953e-05,2]
[394576280,1763730632679,-129.09220674,7.953e-05,2]
[394576283,1763730632691,-370.90779326,7.953e-05,2]
[394576285,1763730632700,-500.0,7.953e-05,2]
[394576287,1763730632711,-500.0,7.953e-05,2]
[394576289,1763730632721,-500.0,7.953e-05,2]
[394576291,1763730632730,-500.0,7.953e-05,2]
[394576293,1763730632739,-500.0,7.953e-05,2]
[394576294,1763730632749,-564.88277994,7.953e-05,2]
[394576296,1763730632758,-500.0,7.953e-05,2]
[394576299,1763730632768,-500.0,7.953e-05,2]
[394576301,1763730632778,-161.11476178,7.953e-05,2]
[394576303,1763730632788,-500.98176125,7.953e-05,2]
[394576304,1763730632797,-500.0,7.953e-05,2]
[394576307,1763730632807,-500.0,7.953e-05,2]
[394576309,1763730632817,-500.0,7.953e-05,2]
[394576311,1763730632827,-500.0,7.953e-05,2]
[394576313,1763730632836,-500.0,7.953e-05,2]
[394576315,1763730632845,-504.2662845,7.953e-05,2]
[394576317,1763730632855,-500.0,7.953e-05,2]
[394576319,1763730632865,-500.0,7.953e-05,2]
[394576321,1763730632874,-50.92199785,7.953e-05,2]
[394576580,1763730640576,-449.07800215,7.953e-05,2]
[394576582,1763730640585,-500.0,7.953e-05,2]
[394576584,1763730640595,-578.22864742,7.953e-05,2]
[394576585,1763730640604,-897.32635981,7.971e-05,2]
[394576587,1763730640615,-897.32635981,7.971e-05,2]
[394576589,1763730640624,-897.32635981,7.971e-05,2]
[394576591,1763730640634,-897.32635981,7.971e-05,2]
[394576593,1763730640643,-897.32635981,7.971e-05,2]
[394576595,1763730640653,-897.32635981,7.971e-05,2]
[394576597,1763730640663,-897.32635981,7.971e-05,2]
[394576599,1763730640672,-572.00883176,7.971e-05,2]
[394576601,1763730640684,-325.31752805,7.971e-05,2]
[394576603,1763730640694,-8.48247193,7.971e-05,2]
[394576605,1763730640705,-272.71,7.971e-05,2]
[394576609,1763730640736,-1527.30664957,7.873e-05,2]
[394576611,1763730640745,-616.13388788,7.971e-05,2]
[394576613,1763730640754,-897.32635981,7.971e-05,2]
[394576615,1763730640764,-142.17170044,7.971e-05,2]
[394576617,1763730640776,-263.29063228,7.971e-05,2]
[394576619,1763730640787,-491.86402709,7.971e-05,2]
[394576621,1763730640797,-8.13106399,7.971e-05,2]
[394577031,1763730645298,-889.19529582,7.971e-05,2]
[394577033,1763730645308,-897.32635981,7.971e-05,2]
[394577035,1763730645318,-897.32635981,7.971e-05,2]
[394577037,1763730645327,-52.41654456,7.971e-05,2]
[394577039,1763730645338,-841.34412303,7.971e-05,2]
[394577172,1763730646582,-3.56569222,7.971e-05,2]
[394577174,1763730646592,-897.32635981,7.971e-05,2]
[394577176,1763730646602,-897.32635981,7.971e-05,2]
[394577178,1763730646612,-467.70413676,7.971e-05,2]
[394578790,1763731837773,-752.73625706,5.764e-05,2]
[394578793,1763731837785,-210.90387569,5.764e-05,2]
[394578795,1763731837794,-774.91996727,5.822e-05,2]
[394578797,1763731837806,-188.72016548,5.822e-05,2]
[394578799,1763731837816,-194.2732731,5.852e-05,2]
[394578801,1763731837826,-963.64013275,6e-05,2]
[394578803,1763731837835,-277.6003136,6.479e-05,2]
[394578805,1763731837845,-1253.0675674,6.78e-05,2]
[394578807,1763731837854,-1034.28516214,6.9e-05,2]
[394578810,1763731837864,-163.85231596,7.612e-05,2]
[394578812,1763731837874,-500.0,7.612e-05,2]
[394578814,1763731837884,-500.0,7.612e-05,2]
[394578816,1763731837892,-500.0,7.612e-05,2]
[394578818,1763731837900,-2068.2950535,7.612e-05,2]
[394578820,1763731837909,-500.0,7.612e-05,2]
[394578822,1763731837918,-488.51293212,7.612e-05,2]
[394578825,1763731837927,-500.0,7.612e-05,2]
[394578827,1763731837936,-2068.2950535,7.612e-05,2]
[394578829,1763731837946,-500.0,7.612e-05,2]
[394578830,1763731837957,-500.0,7.612e-05,2]
[394578833,1763731837967,-2068.2950535,7.612e-05,2]
[394578834,1763731837976,-500.0,7.612e-05,2]
[394578837,1763731837986,-500.0,7.612e-05,2]
[394578839,1763731837995,-2068.2950535,7.612e-05,2]
[394578840,1763731838005,-500.0,7.612e-05,2]
[394578843,1763731838017,-500.0,7.612e-05,2]
[394578845,1763731838029,-500.0,7.612e-05,2]
[394578846,1763731838039,-2068.2950535,7.612e-05,2]
[394578849,1763731838049,-500.0,7.612e-05,2]
[394578851,1763731838059,-626.46066947,7.612e-05,2]
[394578853,1763731838069,-2068.2950535,7.612e-05,2]
[394578855,1763731838079,-500.0,7.612e-05,2]
[394578857,1763731838088,-2068.2950535,7.612e-05,2]
[394578859,1763731838097,-500.0,7.612e-05,2]
[394578861,1763731838107,-500.0,7.612e-05,2]
[394578863,1763731838117,-2068.2950535,7.612e-05,2]
[394578865,1763731838127,-2068.2950535,7.612e-05,2]
[394578867,1763731838137,-500.0,7.612e-05,2]
[394578869,1763731838147,-500.0,7.612e-05,2]
[394578871,1763731838157,-2068.2950535,7.612e-05,2]
[394578873,1763731838167,-500.0,7.612e-05,2]
[394578875,1763731838177,-2068.2950535,7.612e-05,2]
[394578877,1763731838187,-500.0,7.612e-05,2]
[394578879,1763731838196,-2068.2950535,7.612e-05,2]
[394578881,1763731838206,-500.0,7.612e-05,2]
[394578883,1763731838216,-2068.2950535,7.612e-05,2]
[394578885,1763731838225,-500.0,7.612e-05,2]
[394578887,1763731838235,-500.0,7.612e-05,2]
[394578889,1763731838245,-2068.2950535,7.612e-05,2]
[394578891,1763731838255,-500.0,7.612e-05,2]
[394578893,1763731838264,-2068.2950535,7.612e-05,2]
[394578895,1763731838274,-500.0,7.612e-05,2]
[394578898,1763731838294,-2068.2950535,7.612e-05,2]
[394578900,1763731838304,-489.67685699,7.612e-05,2]
[394578902,1763731838318,-2068.2950535,7.612e-05,2]
[394578904,1763731838337,-500.0,7.612e-05,2]
[394578907,1763731838347,-2068.2950535,7.612e-05,2]
[394578909,1763731838357,-500.0,7.612e-05,2]
[394578911,1763731838369,-500.0,7.612e-05,2]
[394578913,1763731838379,-2068.2950535,7.612e-05,2]
[394578915,1763731838389,-500.0,7.612e-05,2]
[394578917,1763731838401,-2068.2950535,7.612e-05,2]
[394578919,1763731838411,-500.0,7.612e-05,2]
[394578921,1763731838421,-2068.2950535,7.612e-05,2]
[394578923,1763731838431,-500.0,7.612e-05,2]
[394578925,1763731838441,-2068.2950535,7.612e-05,2]
[394578927,1763731838452,-500.0,7.612e-05,2]
[394578929,1763731838462,-2068.2950535,7.612e-05,2]
[394578931,1763731838473,-500.0,7.612e-05,2]
[394578933,1763731838483,-500.0,7.612e-05,2]
[394578936,1763731838493,-2068.2950535,7.612e-05,2]
[394578938,1763731838502,-299.04947684,7.612e-05,2]
[394578940,1763731838512,-500.0,7.612e-05,2]
[394578942,1763731838523,-2068.2950535,7.612e-05,2]
[394578944,1763731838533,-500.0,7.612e-05,2]
[394578946,1763731838543,-2068.2950535,7.612e-05,2]
[394578948,1763731838552,-500.0,7.612e-05,2]
[394578950,1763731838563,-2068.2950535,7.612e-05,2]
[394578952,1763731838573,-500.0,7.612e-05,2]
[394578954,1763731838583,-2068.2950535,7.612e-05,2]
[394578956,1763731838593,-500.0,7.612e-05,2]
[394578958,1763731838603,-321.02498183,7.612e-05,2]
[394579041,1763731843992,-963.64013275,5.706e-05,2]
[394579042,1763731844003,-1747.27007167,7.612e-05,2]
[394579043,1763731844013,-2068.2950535,7.612e-05,2]
[394579044,1763731844023,-500.0,7.612e-05,2]
[394579045,1763731844033,-2068.2950535,7.612e-05,2]
[394579046,1763731844042,-2068.2950535,7.612e-05,2]
[394579047,1763731844052,-500.0,7.612e-05,2]
[394579048,1763731844063,-500.0,7.612e-05,2]
[394579049,1763731844072,-2068.2950535,7.612e-05,2]
[394579050,1763731844082,-500.0,7.612e-05,2]
[394579051,1763731844091,-2068.2950535,7.612e-05,2]
[394579052,1763731844101,-2068.2950535,7.612e-05,2]
[394579053,1763731844111,-2068.2950535,7.612e-05,2]
[394579054,1763731844122,-2068.2950535,7.612e-05,2]
[394579055,1763731844132,-2068.2950535,7.612e-05,2]
[394579056,1763731844147,-491.49571638,7.612e-05,2]
[394579057,1763731844170,-1576.79933712,7.612e-05,2]
[394579058,1763731844180,-2068.2950535,7.612e-05,2]
[394579059,1763731844191,-2068.2950535,7.612e-05,2]
[394579060,1763731844200,-2068.2950535,7.612e-05,2]
[394579061,1763731844211,-2068.2950535,7.612e-05,2]
[394579062,1763731844221,-2068.2950535,7.612e-05,2]
[394579063,1763731844231,-2068.2950535,7.612e-05,2]
[394579064,1763731844240,-2068.2950535,7.612e-05,2]
[394579065,1763731844250,-718.62481022,7.612e-05,2]
[394579072,1763731845548,-1349.67024328,7.612e-05,2]
[394579073,1763731845558,-2068.2950535,7.612e-05,2]
[394579074,1763731845567,-2068.2950535,7.612e-05,2]
[394579075,1763731845579,-2068.2950535,7.612e-05,2]
[394579076,1763731845588,-2068.2950535,7.612e-05,2]
[394579077,1763731845597,-2068.2950535,7.612e-05,2]
[394579078,1763731845607,-300.0,7.612e-05,2]
[394579080,1763731845616,-1200.0,7.612e-05,2]
[394579082,1763731845626,-500.0,7.613e-05,2]
[394579083,1763731845635,-425.01706311,7.613e-05,2]
[394579084,1763731845647,-501.24031622,7.613e-05,2]
[394579085,1763731845657,-500.0,7.613e-05,2]
[394579086,1763731845666,-500.0,7.613e-05,2]
[394579087,1763731845675,-500.0,7.613e-05,2]
[394579088,1763731845685,-500.0,7.613e-05,2]
[394579089,1763731845694,-500.0,7.613e-05,2]
[394579090,1763731845705,-500.0,7.613e-05,2]
[394579091,1763731845714,-500.0,7.613e-05,2]
[394579092,1763731845723,-428.66898174,7.613e-05,2]
[394579093,1763731845732,-500.0,7.613e-05,2]
[394579094,1763731845741,-500.0,7.613e-05,2]
[394579095,1763731845750,-500.0,7.613e-05,2]
[394579096,1763731845761,-500.0,7.613e-05,2]
[394579097,1763731845771,-153.92812812,7.613e-05,2]
[394579098,1763731846054,-133.3,7.613e-05,2]
[394579109,1763731975483,906.62410202,0.0001,3]
[394579156,1763732473198,-1181.86644697,6.812e-05,2]
[394579186,1763732567038,167.38291,6.518e-05,61]
[394579188,1763732567242,167.38291,6.518e-05,120]
[394579195,1763732607725,-167.38291,6.518e-05,2]
[394579196,1763732607748,-172.49485799,6.744e-05,2]
[394579235,1763732818138,-190.38780764,6.779e-05,2]
[394579236,1763732818161,-32.64042737,6.813e-05,2]
[394579261,1763732892898,-157.74738027,6.678e-05,2]
[394579262,1763732892922,-113.09749356,6.745e-05,2]
[394579264,1763732918026,1200.0,0.00025279,120]
[394579325,1763733025183,5000.0,0.00014,10]
[394579476,1763733037900,-157.74738027,6.545e-05,2]
[394579478,1763733037909,-157.74738027,6.611e-05,2]
[394579480,1763733037919,-157.74738027,6.813e-05,2]
[394579482,1763733037929,-1200.0,7.332e-05,2]
[394579484,1763733037939,-300.0,7.34e-05,2]
[394579486,1763733037948,-300.0,7.34e-05,2]
[394579488,1763733037957,-300.0,7.34e-05,2]
[394579490,1763733037967,-300.0,7.34e-05,2]
[394579492,1763733037976,-1200.0,7.34e-05,2]
[394579494,1763733037985,-766.0919381,7.341e-05,2]
[394579496,1763733037995,-766.0919381,7.341e-05,2]
[394579498,1763733038004,-766.0919381,7.341e-05,2]
[394579500,1763733038013,-766.0919381,7.341e-05,2]
[394579501,1763733038023,-766.0919381,7.341e-05,2]
[394579504,1763733038033,-766.0919381,7.341e-05,2]
[394579506,1763733038043,-766.0919381,7.341e-05,2]
[394579508,1763733038053,-766.0919381,7.341e-05,2]
[394579510,1763733038062,-766.0919381,7.341e-05,2]
[394579512,1763733038072,-766.0919381,7.341e-05,2]
[394579514,1763733038082,-766.0919381,7.341e-05,2]
[394579516,1763733038091,-766.0919381,7.341e-05,2]
[394579518,1763733038101,-766.0919381,7.341e-05,2]
[394579520,1763733038111,-766.0919381,7.341e-05,2]
[394579522,1763733038121,-291.82896327,7.341e-05,2]
[394579524,1763733038130,-500.0,7.341e-05,2]
[394579526,1763733038143,-500.0,7.341e-05,2]
[394579528,1763733038152,-500.0,7.341e-05,2]
[394579530,1763733038161,-500.0,7.341e-05,2]
[394579532,1763733038171,-500.0,7.341e-05,2]
[394579533,1763733038181,-500.0,7.341e-05,2]
[394579535,1763733038191,-500.0,7.341e-05,2]
[394579537,1763733038201,-500.0,7.341e-05,2]
[394579539,1763733038211,-500.0,7.341e-05,2]
[394579541,1763733038221,-500.0,7.341e-05,2]
[394579544,1763733038231,-500.0,7.341e-05,2]
[394579546,1763733038241,-500.0,7.341e-05,2]
[394579547,1763733038250,-500.0,7.341e-05,2]
[394579550,1763733038261,-766.0919381,7.341e-05,2]
[394579552,1763733038270,-500.0,7.341e-05,2]
[394579554,1763733038280,-248.14339296,7.341e-05,2]
[394579556,1763733038290,-500.0,7.341e-05,2]
[394579558,1763733038299,-500.0,7.341e-05,2]
[394579560,1763733038310,-500.0,7.341e-05,2]
[394579562,1763733038320,-766.0919381,7.341e-05,2]
[394579564,1763733038329,-500.0,7.341e-05,2]
[394579566,1763733038340,-500.0,7.341e-05,2]
[394579568,1763733038350,-500.0,7.341e-05,2]
[394579570,1763733038360,-500.0,7.341e-05,2]
[394579572,1763733038370,-500.0,7.341e-05,2]
[394579574,1763733038380,-500.0,7.341e-05,2]
[394579576,1763733038394,-500.0,7.341e-05,2]
[394579578,1763733038406,-500.0,7.341e-05,2]
[394579580,1763733038416,-500.0,7.341e-05,2]
[394579582,1763733038426,-500.0,7.341e-05,2]
[394579584,1763733038438,-500.0,7.341e-05,2]
[394579586,1763733038449,-500.0,7.341e-05,2]
[394579588,1763733038460,-500.0,7.341e-05,2]